[Event "Titled Tuesday Blitz January 10 Early 2023"]
[White "Mrudul Dehankar"]
[Black "Estrada Nieto, Julian"]
[WhiteFideId "25096990"]
[BlackFideId "5101018"]
[WhiteElo "2030"]
[BlackElo "2215"]
[Result "1-0"]
[Round "11"]
[TimeControl "180+2"]
[Date "2023.01.10"]
[WhiteClock "0:00:05"]
[BlackClock "0:00:02"]

1. e4 {[%clk 0:03:00]}  e5 {[%clk 0:02:59]} 2. Nf3 {[%clk 0:02:59]}  Nc6 {[%clk 0:02:59]} 3. Bb5 {[%clk 0:02:58]}  a6 {[%clk 0:02:59]} 4. Ba4 {[%clk 0:02:58]}  Nf6 {[%clk 0:02:59]} 5. O-O {[%clk 0:02:58]}  Be7 {[%clk 0:03:00]} 6. Re1 {[%clk 0:02:55]}  b5 {[%clk 0:03:00]} 7. Bb3 {[%clk 0:02:54]}  d6 {[%clk 0:03:01]} 8. h3 {[%clk 0:02:52]}  Na5 {[%clk 0:02:58]} 9. c3 {[%clk 0:02:51]}  Nxb3 {[%clk 0:02:57]} 10. axb3 {[%clk 0:02:51]}  O-O {[%clk 0:02:57]} 11. d4 {[%clk 0:02:50]}  Bb7 {[%clk 0:02:55]} 12. d5 {[%clk 0:02:45]}  c6 {[%clk 0:02:41]} 13. c4 {[%clk 0:02:44]}  cxd5 {[%clk 0:02:36]} 14. cxd5 {[%clk 0:02:30]}  Nd7 {[%clk 0:02:17]} 15. b4 {[%clk 0:02:23]}  f5 {[%clk 0:02:16]} 16. Nc3 {[%clk 0:02:22]}  Nb6 {[%clk 0:01:52]} 17. exf5 {[%clk 0:02:10]}  Rxf5 {[%clk 0:01:52]} 18. Be3 {[%clk 0:02:10]}  Nc4 {[%clk 0:01:45]} 19. b3 {[%clk 0:02:06]}  Nxe3 {[%clk 0:01:41]} 20. fxe3 {[%clk 0:02:06]}  Qb6 {[%clk 0:01:11]} 21. Kh1 {[%clk 0:01:53]}  Raf8 {[%clk 0:01:10]} 22. e4 {[%clk 0:01:38]}  Rf4 {[%clk 0:01:07]} 23. Rf1 {[%clk 0:01:27]}  Qe3 {[%clk 0:01:00]} 24. Rc1 {[%clk 0:01:24]}  Bc8 {[%clk 0:00:55]} 25. Qe1 {[%clk 0:00:45]}  Qxe1 {[%clk 0:00:43]} 26. Rcxe1 {[%clk 0:00:42]}  Bxh3 {[%clk 0:00:42]} 27. Kh2 {[%clk 0:00:38]}  Bg4 {[%clk 0:00:40]} 28. Re3 {[%clk 0:00:35]}  Bd8 {[%clk 0:00:29]} 29. Kg3 {[%clk 0:00:31]}  Bxf3 {[%clk 0:00:28]} 30. gxf3 {[%clk 0:00:31]}  Bb6 {[%clk 0:00:24]} 31. Rd3 {[%clk 0:00:31]}  R8f6 {[%clk 0:00:22]} 32. Ne2 {[%clk 0:00:25]}  Rg6+ {[%clk 0:00:21]} 33. Kh3 {[%clk 0:00:26]}  Rff6 {[%clk 0:00:17]} 34. Rc3 {[%clk 0:00:20]}  Rg5 {[%clk 0:00:16]} 35. Ng3 {[%clk 0:00:10]}  Rh6+ {[%clk 0:00:15]} 36. Kg2 {[%clk 0:00:10]}  Rhg6 {[%clk 0:00:15]} 37. f4 {[%clk 0:00:11]}  Rg4 {[%clk 0:00:09]} 38. fxe5 {[%clk 0:00:09]}  h5 {[%clk 0:00:07]} 39. Kh3 {[%clk 0:00:08]}  h4 {[%clk 0:00:06]} 40. Nf5 {[%clk 0:00:08]}  Kh7 {[%clk 0:00:05]} 41. Nxh4 {[%clk 0:00:08]}  R6g5 {[%clk 0:00:03]} 42. Nf5 {[%clk 0:00:07]}  dxe5 {[%clk 0:00:02]} 43. Rc6 {[%clk 0:00:05]} 1-0


[Site "https://www.chess.com"]

[Event "Titled Tuesday Blitz January 10 Early 2023"]
[White "Tuleyeva-Aketayeva, Dana"]
[Black "Forgacs, Attila Jr."]
[WhiteFideId "13701932"]
[BlackFideId "773654"]
[WhiteElo "2130"]
[BlackElo "2264"]
[Result "0-1"]
[Round "11"]
[TimeControl "180+2"]
[Date "2023.01.10"]
[WhiteClock "0:00:01"]
[BlackClock "0:00:14"]

1. d4 {[%clk 0:03:00]}  Nf6 {[%clk 0:02:59]} 2. Nf3 {[%clk 0:02:57]}  g6 {[%clk 0:02:59]} 3. g3 {[%clk 0:02:56]}  Bg7 {[%clk 0:03:00]} 4. Bg2 {[%clk 0:02:52]}  O-O {[%clk 0:03:01]} 5. O-O {[%clk 0:02:50]}  d6 {[%clk 0:03:01]} 6. c4 {[%clk 0:02:50]}  Nc6 {[%clk 0:03:02]} 7. Nc3 {[%clk 0:02:50]}  e5 {[%clk 0:03:03]} 8. dxe5 {[%clk 0:02:48]}  dxe5 {[%clk 0:03:03]} 9. Bg5 {[%clk 0:02:43]}  Be6 {[%clk 0:03:04]} 10. b3 {[%clk 0:02:39]}  h6 {[%clk 0:02:58]} 11. Bxf6 {[%clk 0:02:33]}  Qxf6 {[%clk 0:02:55]} 12. Ne4 {[%clk 0:02:31]}  Qe7 {[%clk 0:02:54]} 13. Rc1 {[%clk 0:02:17]}  f5 {[%clk 0:02:54]} 14. Nc3 {[%clk 0:02:16]}  e4 {[%clk 0:02:53]} 15. Ne1 {[%clk 0:02:07]}  Rad8 {[%clk 0:02:53]} 16. Qc2 {[%clk 0:02:05]}  Nb4 {[%clk 0:02:49]} 17. Qb1 {[%clk 0:02:02]}  Rd2 {[%clk 0:02:44]} 18. a3 {[%clk 0:02:00]}  Nc6 {[%clk 0:02:40]} 19. e3 {[%clk 0:01:57]}  Qxa3 {[%clk 0:02:29]} 20. Nb5 {[%clk 0:01:54]}  Qe7 {[%clk 0:02:25]} 21. Nc2 {[%clk 0:01:52]}  a6 {[%clk 0:02:20]} 22. Nba3 {[%clk 0:01:40]}  Ne5 {[%clk 0:02:18]} 23. Rfd1 {[%clk 0:01:26]}  Rfd8 {[%clk 0:02:17]} 24. Nd4 {[%clk 0:01:19]}  Rxd1+ {[%clk 0:02:14]} 25. Rxd1 {[%clk 0:01:17]}  Nd3 {[%clk 0:02:04]} 26. Nxe6 {[%clk 0:01:16]}  Qxe6 {[%clk 0:02:05]} 27. Bf1 {[%clk 0:01:13]}  Qe7 {[%clk 0:02:00]} 28. Nc2 {[%clk 0:01:07]}  Ne5 {[%clk 0:01:58]} 29. Be2 {[%clk 0:01:00]}  c5 {[%clk 0:01:52]} 30. Rxd8+ {[%clk 0:00:38]}  Qxd8 {[%clk 0:01:50]} 31. b4 {[%clk 0:00:39]}  Qd2 {[%clk 0:01:43]} 32. Qd1 {[%clk 0:00:23]}  Qxd1+ {[%clk 0:01:40]} 33. Bxd1 {[%clk 0:00:23]}  cxb4 {[%clk 0:01:39]} 34. Nxb4 {[%clk 0:00:23]}  Nxc4 {[%clk 0:01:39]} 35. Bb3 {[%clk 0:00:23]}  b5 {[%clk 0:01:37]} 36. Nxa6 {[%clk 0:00:23]}  Be5 {[%clk 0:01:15]} 37. Nc5 {[%clk 0:00:15]}  Kf7 {[%clk 0:01:10]} 38. Kf1 {[%clk 0:00:13]}  Ke7 {[%clk 0:01:07]} 39. Ke2 {[%clk 0:00:12]}  Kd6 {[%clk 0:01:00]} 40. Na6 {[%clk 0:00:11]}  Kc6 {[%clk 0:00:53]} 41. Nb4+ {[%clk 0:00:09]}  Kc5 {[%clk 0:00:53]} 42. Nc2 {[%clk 0:00:09]}  g5 {[%clk 0:00:43]} 43. h4 {[%clk 0:00:08]}  gxh4 {[%clk 0:00:42]} 44. gxh4 {[%clk 0:00:09]}  h5 {[%clk 0:00:40]} 45. f3 {[%clk 0:00:09]}  Bf6 {[%clk 0:00:39]} 46. fxe4 {[%clk 0:00:09]}  fxe4 {[%clk 0:00:39]} 47. Ne1 {[%clk 0:00:08]}  Bxh4 {[%clk 0:00:38]} 48. Ng2 {[%clk 0:00:08]}  Bg5 {[%clk 0:00:36]} 49. Bc2 {[%clk 0:00:08]}  Kd5 {[%clk 0:00:35]} 50. Bb3 {[%clk 0:00:07]}  h4 {[%clk 0:00:32]} 51. Bc2 {[%clk 0:00:06]}  h3 {[%clk 0:00:31]} 52. Nf4+ {[%clk 0:00:06]}  Bxf4 {[%clk 0:00:31]} 53. exf4 {[%clk 0:00:06]}  h2 {[%clk 0:00:30]} 54. Bxe4+ {[%clk 0:00:05]}  Kxe4 {[%clk 0:00:30]} 55. Kf2 {[%clk 0:00:04]}  h1=Q {[%clk 0:00:30]} 56. Kg3 {[%clk 0:00:04]}  b4 {[%clk 0:00:27]} 57. f5 {[%clk 0:00:03]}  Kxf5 {[%clk 0:00:25]} 58. Kf2 {[%clk 0:00:03]}  b3 {[%clk 0:00:25]} 59. Ke2 {[%clk 0:00:02]}  b2 {[%clk 0:00:24]} 60. Kf2 {[%clk 0:00:02]}  b1=Q {[%clk 0:00:24]} 61. Ke2 {[%clk 0:00:02]}  Qb5 {[%clk 0:00:22]} 62. Kf2 {[%clk 0:00:02]}  Qhb7 {[%clk 0:00:19]} 63. Ke2 {[%clk 0:00:02]}  Q7a6 {[%clk 0:00:19]} 64. Kf2 {[%clk 0:00:01]}  Ne5 {[%clk 0:00:15]} 65. Ke1 {[%clk 0:00:01]}  Qe2# {[%clk 0:00:14]} 0-1


[Site "https://www.chess.com"]

[Event "Titled Tuesday Blitz January 10 Early 2023"]
[White "Joubert, Dantelle"]
[Black "Vifleemskaia, Svetlana"]
[WhiteFideId "14310813"]
[BlackFideId "4129490"]
[WhiteElo "1566"]
[BlackElo "1971"]
[Result "0-1"]
[Round "11"]
[TimeControl "180+2"]
[Date "2023.01.10"]
[WhiteClock "0:00:04"]
[BlackClock "0:00:15"]

1. d4 {[%clk 0:02:42]}  Nf6 {[%clk 0:02:59]} 2. c4 {[%clk 0:02:40]}  e6 {[%clk 0:02:58]} 3. Nf3 {[%clk 0:02:39]}  Bb4+ {[%clk 0:02:58]} 4. Bd2 {[%clk 0:02:38]}  Qe7 {[%clk 0:02:58]} 5. g3 {[%clk 0:02:37]}  Nc6 {[%clk 0:02:57]} 6. Bg2 {[%clk 0:02:36]}  O-O {[%clk 0:02:57]} 7. O-O {[%clk 0:02:35]}  Bxd2 {[%clk 0:02:58]} 8. Qxd2 {[%clk 0:02:34]}  d6 {[%clk 0:02:58]} 9. Nc3 {[%clk 0:02:32]}  a5 {[%clk 0:02:58]} 10. e4 {[%clk 0:02:30]}  e5 {[%clk 0:02:58]} 11. d5 {[%clk 0:02:27]}  Nb8 {[%clk 0:02:57]} 12. Ne1 {[%clk 0:02:20]}  Nbd7 {[%clk 0:02:55]} 13. Nd3 {[%clk 0:02:19]}  b6 {[%clk 0:02:52]} 14. a3 {[%clk 0:02:19]}  a4 {[%clk 0:02:49]} 15. Nb4 {[%clk 0:02:10]}  Bb7 {[%clk 0:02:47]} 16. Qc2 {[%clk 0:02:02]}  Nc5 {[%clk 0:02:45]} 17. Nd3 {[%clk 0:01:58]}  Nb3 {[%clk 0:02:30]} 18. Rab1 {[%clk 0:01:57]}  Nd4 {[%clk 0:02:30]} 19. Qd1 {[%clk 0:01:56]}  Ba6 {[%clk 0:02:29]} 20. Nb5 {[%clk 0:01:37]}  Bxb5 {[%clk 0:02:11]} 21. cxb5 {[%clk 0:01:36]}  Nxb5 {[%clk 0:02:12]} 22. Nb4 {[%clk 0:01:27]}  Nd4 {[%clk 0:02:11]} 23. Qd3 {[%clk 0:01:25]}  Ra5 {[%clk 0:02:10]} 24. Rfc1 {[%clk 0:01:22]}  Rc5 {[%clk 0:02:09]} 25. Na6 {[%clk 0:01:22]}  Rxc1+ {[%clk 0:02:00]} 26. Rxc1 {[%clk 0:01:23]}  Rc8 {[%clk 0:01:56]} 27. Bh3 {[%clk 0:01:18]}  Ra8 {[%clk 0:01:55]} 28. Rxc7 {[%clk 0:01:14]}  Qd8 {[%clk 0:01:54]} 29. Rc1 {[%clk 0:01:01]}  b5 {[%clk 0:01:44]} 30. Nb4 {[%clk 0:01:00]}  g6 {[%clk 0:01:39]} 31. Nc6 {[%clk 0:00:57]}  Qb6 {[%clk 0:01:33]} 32. Nxd4 {[%clk 0:00:56]}  Qxd4 {[%clk 0:01:28]} 33. Qxd4 {[%clk 0:00:55]}  exd4 {[%clk 0:01:29]} 34. f3 {[%clk 0:00:54]}  g5 {[%clk 0:01:18]} 35. Bf5 {[%clk 0:00:52]}  Kf8 {[%clk 0:01:09]} 36. Rd1 {[%clk 0:00:52]}  Ra7 {[%clk 0:01:08]} 37. Rxd4 {[%clk 0:00:52]}  Rc7 {[%clk 0:01:08]} 38. Rd2 {[%clk 0:00:47]}  Ke7 {[%clk 0:01:05]} 39. Kf2 {[%clk 0:00:46]}  h6 {[%clk 0:01:04]} 40. Ke2 {[%clk 0:00:45]}  Nd7 {[%clk 0:01:04]} 41. f4 {[%clk 0:00:42]}  Nc5 {[%clk 0:00:57]} 42. e5 {[%clk 0:00:39]}  Nb3 {[%clk 0:00:51]} 43. Rd1 {[%clk 0:00:37]}  Rc4 {[%clk 0:00:45]} 44. Bd3 {[%clk 0:00:30]}  Rd4 {[%clk 0:00:41]} 45. Bxb5 {[%clk 0:00:29]}  dxe5 {[%clk 0:00:36]} 46. fxe5 {[%clk 0:00:27]}  Re4+ {[%clk 0:00:35]} 47. Kf3 {[%clk 0:00:27]}  Rxe5 {[%clk 0:00:36]} 48. d6+ {[%clk 0:00:27]}  Kd8 {[%clk 0:00:35]} 49. d7 {[%clk 0:00:25]}  Rxb5 {[%clk 0:00:35]} 50. Kg4 {[%clk 0:00:20]}  Nc5 {[%clk 0:00:29]} 51. Rd5 {[%clk 0:00:17]}  Ra5 {[%clk 0:00:18]} 52. h4 {[%clk 0:00:17]}  gxh4 {[%clk 0:00:17]} 53. Kxh4 {[%clk 0:00:14]}  Nb7 {[%clk 0:00:18]} 54. Rxa5 {[%clk 0:00:01]}  Nxa5 {[%clk 0:00:17]} 55. Kh5 {[%clk 0:00:02]}  Kxd7 {[%clk 0:00:16]} 56. Kxh6 {[%clk 0:00:03]}  Nc4 {[%clk 0:00:16]} 57. Kg5 {[%clk 0:00:04]}  Ke6 {[%clk 0:00:15]} 58. Kf4 {[%clk 0:00:04]}  Nxb2 {[%clk 0:00:15]} 0-1


[Site "https://www.chess.com"]

[Event "Titled Tuesday Blitz January 10 Early 2023"]
[White "Jenkins, Drake"]
[Black "Carbone, Diego"]
[WhiteFideId "2022397"]
[BlackFideId "3002179"]
[WhiteElo "2130"]
[BlackElo "2336"]
[Result "1-0"]
[Round "11"]
[TimeControl "180+2"]
[Date "2023.01.10"]
[WhiteClock "0:00:04"]
[BlackClock "0:00:01"]

1. Nf3 {[%clk 0:03:00]}  d5 {[%clk 0:02:56]} 2. c4 {[%clk 0:03:00]}  d4 {[%clk 0:02:56]} 3. b4 {[%clk 0:02:56]}  c5 {[%clk 0:02:54]} 4. b5 {[%clk 0:02:56]}  f6 {[%clk 0:02:48]} 5. d3 {[%clk 0:02:55]}  e5 {[%clk 0:02:43]} 6. g3 {[%clk 0:02:56]}  Be6 {[%clk 0:02:42]} 7. Bg2 {[%clk 0:02:54]}  Qd7 {[%clk 0:02:40]} 8. e3 {[%clk 0:02:48]}  a6 {[%clk 0:02:33]} 9. bxa6 {[%clk 0:02:35]}  Rxa6 {[%clk 0:02:22]} 10. exd4 {[%clk 0:02:32]}  cxd4 {[%clk 0:02:21]} 11. O-O {[%clk 0:02:32]}  Nc6 {[%clk 0:02:21]} 12. Re1 {[%clk 0:02:12]}  Nge7 {[%clk 0:02:14]} 13. Na3 {[%clk 0:02:09]}  Ng6 {[%clk 0:02:02]} 14. Nb5 {[%clk 0:02:08]}  h5 {[%clk 0:02:03]} 15. a4 {[%clk 0:01:16]}  Bb4 {[%clk 0:01:53]} 16. Bd2 {[%clk 0:01:13]}  Bc5 {[%clk 0:01:53]} 17. h4 {[%clk 0:00:58]}  Bg4 {[%clk 0:01:37]} 18. Qb3 {[%clk 0:00:38]}  O-O {[%clk 0:01:36]} 19. Nh2 {[%clk 0:00:30]}  Bf5 {[%clk 0:01:31]} 20. Bf3 {[%clk 0:00:28]}  Bg4 {[%clk 0:01:03]} 21. Nxg4 {[%clk 0:00:27]}  hxg4 {[%clk 0:01:04]} 22. Bd5+ {[%clk 0:00:26]}  Kh7 {[%clk 0:01:02]} 23. Kg2 {[%clk 0:00:22]}  Nce7 {[%clk 0:01:01]} 24. h5 {[%clk 0:00:17]}  Nh8 {[%clk 0:01:01]} 25. Rh1 {[%clk 0:00:15]}  Nxd5 {[%clk 0:00:57]} 26. cxd5 {[%clk 0:00:16]}  Rd8 {[%clk 0:00:56]} 27. h6 {[%clk 0:00:16]}  g5 {[%clk 0:00:50]} 28. Ra2 {[%clk 0:00:13]}  Qxd5+ {[%clk 0:00:48]} 29. Qxd5 {[%clk 0:00:13]}  Rxd5 {[%clk 0:00:49]} 30. Nc7 {[%clk 0:00:13]}  Rdd6 {[%clk 0:00:32]} 31. Nxa6 {[%clk 0:00:13]}  Rxa6 {[%clk 0:00:33]} 32. a5 {[%clk 0:00:12]}  Nf7 {[%clk 0:00:21]} 33. Rb1 {[%clk 0:00:12]}  Ra7 {[%clk 0:00:20]} 34. a6 {[%clk 0:00:08]}  bxa6 {[%clk 0:00:17]} 35. Rba1 {[%clk 0:00:07]}  Rb7 {[%clk 0:00:12]} 36. Rxa6 {[%clk 0:00:07]}  Rb3 {[%clk 0:00:12]} 37. Rxf6 {[%clk 0:00:06]}  Nxh6 {[%clk 0:00:08]} 38. Rh1 {[%clk 0:00:06]}  Rxd3 {[%clk 0:00:09]} 39. Rhxh6+ {[%clk 0:00:05]}  Kg7 {[%clk 0:00:09]} 40. Rhg6+ {[%clk 0:00:06]}  Kh7 {[%clk 0:00:09]} 41. Bxg5 {[%clk 0:00:07]}  Rf3 {[%clk 0:00:07]} 42. Rh6+ {[%clk 0:00:06]}  Kg7 {[%clk 0:00:08]} 43. Rxf3 {[%clk 0:00:07]}  gxf3+ {[%clk 0:00:08]} 44. Kxf3 {[%clk 0:00:07]}  d3 {[%clk 0:00:08]} 45. Bd2 {[%clk 0:00:07]}  Bb4 {[%clk 0:00:02]} 46. Ke3 {[%clk 0:00:06]}  Kxh6 {[%clk 0:00:01]} 47. Bxb4 {[%clk 0:00:04]} 1-0


[Site "https://www.chess.com"]

[Event "Titled Tuesday Blitz January 10 Early 2023"]
[White "Fernandez Siles, Luis"]
[Black "Blokhin, Sofia"]
[WhiteFideId "2209420"]
[BlackFideId "4508190"]
[WhiteElo "2218"]
[BlackElo "2062"]
[Result "1-0"]
[Round "11"]
[TimeControl "180+2"]
[Date "2023.01.10"]
[WhiteClock "0:01:24"]
[BlackClock "0:00:34"]

1. e4 {[%clk 0:03:00]}  c5 {[%clk 0:02:59]} 2. Nf3 {[%clk 0:03:00]}  e6 {[%clk 0:02:59]} 3. c3 {[%clk 0:03:00]}  d5 {[%clk 0:02:56]} 4. exd5 {[%clk 0:03:01]}  exd5 {[%clk 0:02:56]} 5. d4 {[%clk 0:03:00]}  Nf6 {[%clk 0:02:55]} 6. Bb5+ {[%clk 0:03:00]}  Nc6 {[%clk 0:02:54]} 7. O-O {[%clk 0:02:59]}  Be7 {[%clk 0:02:53]} 8. dxc5 {[%clk 0:02:59]}  O-O {[%clk 0:02:52]} 9. b4 {[%clk 0:02:55]}  a5 {[%clk 0:02:52]} 10. a3 {[%clk 0:02:52]}  axb4 {[%clk 0:02:50]} 11. Bxc6 {[%clk 0:02:52]}  bxc6 {[%clk 0:02:48]} 12. cxb4 {[%clk 0:02:53]}  Ba6 {[%clk 0:02:44]} 13. Re1 {[%clk 0:02:50]}  Ne4 {[%clk 0:02:42]} 14. Bb2 {[%clk 0:02:47]}  Bf6 {[%clk 0:02:42]} 15. Bxf6 {[%clk 0:02:43]}  Qxf6 {[%clk 0:02:42]} 16. Nbd2 {[%clk 0:02:23]}  Nc3 {[%clk 0:02:40]} 17. Qc2 {[%clk 0:02:20]}  d4 {[%clk 0:02:31]} 18. Ne4 {[%clk 0:02:09]}  Qg6 {[%clk 0:01:54]} 19. Ne5 {[%clk 0:01:57]}  Qf5 {[%clk 0:01:35]} 20. Nxc6 {[%clk 0:01:53]}  Rfe8 {[%clk 0:01:15]} 21. Nxd4 {[%clk 0:01:47]}  Qd5 {[%clk 0:01:03]} 22. Qxc3 {[%clk 0:01:35]}  Rxe4 {[%clk 0:01:01]} 23. Rxe4 {[%clk 0:01:33]}  Qxe4 {[%clk 0:01:00]} 24. Re1 {[%clk 0:01:34]}  Qg4 {[%clk 0:00:55]} 25. b5 {[%clk 0:01:30]}  Bb7 {[%clk 0:00:53]} 26. c6 {[%clk 0:01:30]}  Rc8 {[%clk 0:00:38]} 27. cxb7 {[%clk 0:01:26]}  Rxc3 {[%clk 0:00:34]} 28. Re8# {[%clk 0:01:24]} 1-0


[Site "https://www.chess.com"]

[Event "Titled Tuesday Blitz January 10 Early 2023"]
[White "Petrova, Irina"]
[Black "Hartikainen, Jarmo"]
[WhiteFideId "14124122"]
[BlackFideId "503134"]
[WhiteElo "2108"]
[BlackElo "2108"]
[Result "1-0"]
[Round "11"]
[TimeControl "180+2"]
[Date "2023.01.10"]
[WhiteClock "0:00:16"]
[BlackClock "0:00:11"]

1. e4 {[%clk 0:03:00]}  c5 {[%clk 0:02:59]} 2. Nf3 {[%clk 0:03:00]}  e6 {[%clk 0:02:59]} 3. c4 {[%clk 0:02:59]}  Nc6 {[%clk 0:02:58]} 4. Nc3 {[%clk 0:02:59]}  Nf6 {[%clk 0:02:56]} 5. Be2 {[%clk 0:02:59]}  d6 {[%clk 0:02:53]} 6. O-O {[%clk 0:02:59]}  Be7 {[%clk 0:02:53]} 7. d4 {[%clk 0:02:59]}  cxd4 {[%clk 0:02:53]} 8. Nxd4 {[%clk 0:02:59]}  O-O {[%clk 0:02:52]} 9. Be3 {[%clk 0:02:59]}  a6 {[%clk 0:02:51]} 10. Qd2 {[%clk 0:02:58]}  Bd7 {[%clk 0:02:49]} 11. Rfc1 {[%clk 0:02:56]}  Rc8 {[%clk 0:02:44]} 12. f3 {[%clk 0:02:54]}  Ne5 {[%clk 0:02:35]} 13. b3 {[%clk 0:02:51]}  Re8 {[%clk 0:02:21]} 14. a4 {[%clk 0:02:41]}  Bf8 {[%clk 0:02:07]} 15. a5 {[%clk 0:02:41]}  Bc6 {[%clk 0:02:00]} 16. Na4 {[%clk 0:02:29]}  g6 {[%clk 0:01:49]} 17. Nxc6 {[%clk 0:02:21]}  Rxc6 {[%clk 0:01:41]} 18. Nb6 {[%clk 0:02:14]}  Bg7 {[%clk 0:01:37]} 19. Rd1 {[%clk 0:02:12]}  Nfd7 {[%clk 0:01:21]} 20. Bf1 {[%clk 0:02:09]}  Nxb6 {[%clk 0:01:20]} 21. Bxb6 {[%clk 0:02:10]}  Qc8 {[%clk 0:01:14]} 22. Kh1 {[%clk 0:02:07]}  Nd7 {[%clk 0:01:13]} 23. Bf2 {[%clk 0:02:02]}  Rd8 {[%clk 0:01:06]} 24. Ra2 {[%clk 0:01:50]}  Nf6 {[%clk 0:01:06]} 25. Qe1 {[%clk 0:01:35]}  d5 {[%clk 0:01:00]} 26. Rad2 {[%clk 0:01:28]}  Rd7 {[%clk 0:00:47]} 27. cxd5 {[%clk 0:01:19]}  exd5 {[%clk 0:00:47]} 28. e5 {[%clk 0:01:19]}  Nh5 {[%clk 0:00:32]} 29. Rxd5 {[%clk 0:01:17]}  Rxd5 {[%clk 0:00:29]} 30. Rxd5 {[%clk 0:01:18]}  Rc1 {[%clk 0:00:26]} 31. Rd1 {[%clk 0:01:14]}  Rxd1 {[%clk 0:00:25]} 32. Qxd1 {[%clk 0:01:15]}  Bxe5 {[%clk 0:00:25]} 33. Bc4 {[%clk 0:01:14]}  Qc7 {[%clk 0:00:19]} 34. Bg1 {[%clk 0:01:10]}  Nf6 {[%clk 0:00:18]} 35. Bb6 {[%clk 0:01:07]}  Qd7 {[%clk 0:00:17]} 36. Qe1 {[%clk 0:00:54]}  Bd4 {[%clk 0:00:13]} 37. Bxd4 {[%clk 0:00:45]}  Qxd4 {[%clk 0:00:14]} 38. h3 {[%clk 0:00:45]}  Qd6 {[%clk 0:00:13]} 39. Qe3 {[%clk 0:00:29]}  Kg7 {[%clk 0:00:13]} 40. Qc3 {[%clk 0:00:27]}  h6 {[%clk 0:00:13]} 41. Qe1 {[%clk 0:00:21]}  Kg8 {[%clk 0:00:13]} 42. Qe3 {[%clk 0:00:17]}  Kg7 {[%clk 0:00:13]} 43. f4 {[%clk 0:00:15]}  Qc6 {[%clk 0:00:11]} 44. Qe5 {[%clk 0:00:13]}  Qc8 {[%clk 0:00:07]} 45. g4 {[%clk 0:00:12]}  Qd8 {[%clk 0:00:06]} 46. g5 {[%clk 0:00:10]}  Qd1+ {[%clk 0:00:05]} 47. Kg2 {[%clk 0:00:10]}  Qd2+ {[%clk 0:00:06]} 48. Kf3 {[%clk 0:00:10]}  Qd1+ {[%clk 0:00:06]} 49. Be2 {[%clk 0:00:09]}  Qd5+ {[%clk 0:00:06]} 50. Qxd5 {[%clk 0:00:08]}  Nxd5 {[%clk 0:00:07]} 51. gxh6+ {[%clk 0:00:09]}  Kxh6 {[%clk 0:00:07]} 52. Ke4 {[%clk 0:00:09]}  Nc3+ {[%clk 0:00:07]} 53. Kd3 {[%clk 0:00:09]}  Nxe2 {[%clk 0:00:08]} 54. Kxe2 {[%clk 0:00:10]}  f6 {[%clk 0:00:08]} 55. Kf3 {[%clk 0:00:10]}  g5 {[%clk 0:00:08]} 56. fxg5+ {[%clk 0:00:10]}  fxg5 {[%clk 0:00:08]} 57. Ke4 {[%clk 0:00:09]}  Kh5 {[%clk 0:00:08]} 58. Kf5 {[%clk 0:00:09]}  Kh4 {[%clk 0:00:08]} 59. Kg6 {[%clk 0:00:09]}  Kxh3 {[%clk 0:00:08]} 60. Kxg5 {[%clk 0:00:10]}  Kg3 {[%clk 0:00:09]} 61. Kf5 {[%clk 0:00:11]}  Kf3 {[%clk 0:00:10]} 62. Ke5 {[%clk 0:00:11]}  Ke3 {[%clk 0:00:11]} 63. Kd5 {[%clk 0:00:12]}  Kd3 {[%clk 0:00:12]} 64. Kc5 {[%clk 0:00:12]}  Kc3 {[%clk 0:00:13]} 65. Kb6 {[%clk 0:00:13]}  Kxb3 {[%clk 0:00:14]} 66. Kxb7 {[%clk 0:00:13]}  Kb4 {[%clk 0:00:11]} 67. Kxa6 {[%clk 0:00:14]}  Kc5 {[%clk 0:00:11]} 68. Kb7 {[%clk 0:00:14]}  Kb5 {[%clk 0:00:11]} 69. a6 {[%clk 0:00:15]}  Kc5 {[%clk 0:00:11]} 70. a7 {[%clk 0:00:16]} 1-0


[Site "https://www.chess.com"]

[Event "Titled Tuesday Blitz January 10 Early 2023"]
[White "Clawitter, Craig"]
[Black "Zanette, Edgard Vinicius"]
[WhiteFideId "2023105"]
[BlackFideId "2109263"]
[WhiteElo "2050"]
[BlackElo "2085"]
[Result "0-1"]
[Round "11"]
[TimeControl "180+2"]
[Date "2023.01.10"]
[WhiteClock "0:00:07"]
[BlackClock "0:00:41"]

1. e4 {[%clk 0:03:00]}  c5 {[%clk 0:02:58]} 2. Nf3 {[%clk 0:03:01]}  d6 {[%clk 0:02:58]} 3. d4 {[%clk 0:03:01]}  cxd4 {[%clk 0:02:58]} 4. Nxd4 {[%clk 0:03:02]}  Nf6 {[%clk 0:02:59]} 5. Nc3 {[%clk 0:03:03]}  a6 {[%clk 0:02:59]} 6. Be3 {[%clk 0:03:03]}  e5 {[%clk 0:02:59]} 7. Nb3 {[%clk 0:03:03]}  Be7 {[%clk 0:02:59]} 8. f3 {[%clk 0:03:04]}  O-O {[%clk 0:02:59]} 9. Qd2 {[%clk 0:03:02]}  Be6 {[%clk 0:02:59]} 10. g4 {[%clk 0:03:02]}  d5 {[%clk 0:02:48]} 11. g5 {[%clk 0:03:02]}  d4 {[%clk 0:02:47]} 12. gxf6 {[%clk 0:03:00]}  Bxf6 {[%clk 0:02:47]} 13. O-O-O {[%clk 0:02:55]}  Nc6 {[%clk 0:02:45]} 14. Qf2 {[%clk 0:02:29]}  dxe3 {[%clk 0:02:43]} 15. Rxd8 {[%clk 0:02:25]}  exf2 {[%clk 0:02:42]} 16. Rxf8+ {[%clk 0:02:21]}  Kxf8 {[%clk 0:02:40]} 17. h4 {[%clk 0:02:12]}  h5 {[%clk 0:02:15]} 18. Nd1 {[%clk 0:02:06]}  Bxb3 {[%clk 0:02:08]} 19. axb3 {[%clk 0:02:02]}  Nd4 {[%clk 0:02:07]} 20. Rh3 {[%clk 0:01:54]}  Rc8 {[%clk 0:02:05]} 21. Nc3 {[%clk 0:01:14]}  b5 {[%clk 0:01:57]} 22. b4 {[%clk 0:00:44]}  Be7 {[%clk 0:01:46]} 23. Bd3 {[%clk 0:00:35]}  Bxb4 {[%clk 0:01:40]} 24. Kd2 {[%clk 0:00:36]}  Ne6 {[%clk 0:01:33]} 25. Rh2 {[%clk 0:00:27]}  Bc5 {[%clk 0:01:28]} 26. Nd1 {[%clk 0:00:26]}  Rd8 {[%clk 0:01:13]} 27. Nxf2 {[%clk 0:00:26]}  Nd4 {[%clk 0:01:13]} 28. Rh3 {[%clk 0:00:21]}  Nxc2 {[%clk 0:01:10]} 29. Kxc2 {[%clk 0:00:19]}  Bxf2 {[%clk 0:01:10]} 30. Kd2 {[%clk 0:00:17]}  b4 {[%clk 0:00:59]} 31. Ke2 {[%clk 0:00:17]}  a5 {[%clk 0:00:55]} 32. f4 {[%clk 0:00:16]}  Bd4 {[%clk 0:00:54]} 33. fxe5 {[%clk 0:00:15]}  Bxb2 {[%clk 0:00:50]} 34. Rf3 {[%clk 0:00:14]}  Bxe5 {[%clk 0:00:50]} 35. Bc4 {[%clk 0:00:14]}  Rd7 {[%clk 0:00:49]} 36. Rf5 {[%clk 0:00:14]}  Bf6 {[%clk 0:00:44]} 37. e5 {[%clk 0:00:13]}  Re7 {[%clk 0:00:44]} 38. Kf3 {[%clk 0:00:10]}  Rxe5 {[%clk 0:00:42]} 39. Rxe5 {[%clk 0:00:11]}  Bxe5 {[%clk 0:00:43]} 40. Bb3 {[%clk 0:00:07]}  Ke7 {[%clk 0:00:41]} 41. Ke4 {[%clk 0:00:07]}  Bg3 {[%clk 0:00:41]} 42. Kf5 {[%clk 0:00:07]}  Bxh4 {[%clk 0:00:41]} 0-1


[Site "https://www.chess.com"]